[Event "Turkey IS Bank Super League 2017"]
[Site "Darica-Kocaeli"]
[Date "2017.07.30"]
[Round "5"]
[White "Tasdogen, Dincer"]
[Black "Ozates, Tuna"]
[Result "1-0"]
[ECO "B32"]
[WhiteElo "2215"]
[BlackElo "2291"]
[Annotator "NA"]
[PlyCount "143"]
[EventType "team-tourn"]
[EventCountry "TUR"]
[SourceTitle "playchess.com"]
[Source "ChessBase"]
[SourceQuality "1"]
[TimeControl "40/5400+30:1800+30"]

1. e4 {[%emt 0:00:30]} c5 {[%emt 0:01:00]} 2. Nf3 {[%emt 0:00:30]} Nc6 {[%emt 0:00:30]} 3. d4 {[%emt 0:00:00]} cxd4 {[%emt 0:00:30]} 4. Nxd4 {[%emt 0:00:00]} e5 {[%emt 0:00:30]} 5. Nb5 {[%emt 0:00:30]} d6 {[%emt 0:00:30]} 6. c4 {[%emt 0:00:30]} Be7 {[%emt 0:00:00]} 7. N1c3 {[%emt 0:00:00]} a6 {[%emt 0:00:00]} 8. Na3 {[%emt 0:00:00]} f5 {[%emt 0:00:00]} 9. exf5 {[%emt 0:00:00] LiveBook: 267 Games} Bxf5 {[%emt 0:00:00]} 10. Nc2 {[%emt 0:00:00]} Nf6 {[%emt 0:00:00]} 11. Ne3 {[%emt 0:00:30]} Be6 {[%emt 0:00:00]} 12. g3 {[%emt 0:00:00]} O-O {[%emt 0:05:30]} 13. Bg2 {[%emt 0:00:00]} Qd7 {[%emt 0:01:30]} 14. O-O {[%emt 0:12:30]} b5 {[%emt 0:11:30]} 15. cxb5 {[%emt 0:11:30]} axb5 {[%emt 0:00:30]} 16. Ncd5 {[%emt 0:00:30]} Rab8 {[%emt 0:01:30]} 17. b3 {[%emt 0:02:30]} Bd8 $14 {[%emt 0:08:30]} 18. Bb2 {[%emt 0:08:30]} Nxd5 {[%emt 0:11:30]} 19. Nxd5 {[%emt 0:09:30]} Kh8 {[%emt 0:04:30]} 20. f4 {[%emt 0:15:30]} Bxd5 {[%emt 0:06:30]} 21. Qxd5 {[%emt 0:05:30]} Bb6+ {[%emt 0:00:30]} 22. Kh1 {[%emt 0:00:30]} Ne7 {[%emt 0:00:30]} 23. Qd2 {[%emt 0:04:30]} Nf5 {[%emt 0:05:30]} 24. Rae1 {[%emt 0:13:10]} Qe8 {[%emt 0:20:30]} 25. Be4 {[%emt 0:10:33]} Nd4 {[%emt 0:05:34]} 26. fxe5 {[%emt 0:01:35]} dxe5 {[%emt 0:00:38]} 27. Qg5 {[%emt 0:01:22]} Qe6 {[%emt 0:02:12]} 28. Ba3 {[%emt 0:02:19]} Rf6 {[%emt 0:01:32]} 29. Qh5 {[%emt 0:01:14]} Rh6 {[%emt 0:01:10]} 30. Qf7 {[%emt 0:00:33]} Rd8 {[%emt 0:08:51]} 31. Qxe6 {[%emt 0:00:37]} Nxe6 {[%emt 0:00:16]} 32. Rd1 {[%emt 0:00:33]} Bd4 {[%emt 0:00:36]} 33. Kg2 {[%emt 0:00:30]} Ng5 {[%emt 0:01:22]} 34. Bb1 {[%emt 0:00:02]} Ne6 {[%emt 0:01:34]} 35. Rf7 {[%emt 0:00:56]} Kg8 {[%emt 0:00:56]} 36. Re7 {[%emt 0:00:32]} Rf8 {[%emt 0:00:49]} 37. Rd2 {[%emt 0:00:27]} Rhf6 {[%emt 0:00:43]} 38. Rxe6 {[%emt 0:00:49]} Rxe6 39. Bxh7+ {[%emt 0:00:00]} Kf7 {[%emt 0:00:32]} 40. Bxf8 {[%emt 0:00:48]} Kxf8 {[%emt 0:00:15]} 41. Be4 {[%emt 0:03:00]} b4 {[%emt 0:01:30]} 42. Rc2 {[%emt 0:00:30]} Ra6 {[%emt 0:01:30]} 43. h4 {[%emt 0:01:30]} Rf6 {[%emt 0:05:30]} 44. h5 {[%emt 0:01:30]} Ke7 {[%emt 0:04:30]} 45. Rc7+ {[%emt 0:04:30]} Kf8 {[%emt 0:01:56]} 46. Rc4 {[%emt 0:06:40]} Rf2+ {[%emt 0:02:44]} 47. Kh3 {[%emt 0:00:17]} Rxa2 {[%emt 0:00:36]} 48. Rxb4 {[%emt 0:00:45]} Ke7 {[%emt 0:01:30]} 49. Rb7+ {[%emt 0:03:18]} Kf6 {[%emt 0:00:11]} 50. Kg4 {[%emt 0:00:43]} Ra7 {[%emt 0:01:08]} 51. Rb8 {[%emt 0:01:29]} Ra1 {[%emt 0:05:24]} 52. Bd5 {[%emt 0:05:10]} Ra5 {[%emt 0:00:43]} 53. Rf8+ {[%emt 0:01:18]} Ke7 {[%emt 0:00:30]} 54. Rf7+ {[%emt 0:00:30]} Ke8 {[%emt 0:00:30]} 55. Bc4 {[%emt 0:00:30]} e4 {[%emt 0:00:00]} 56. Rf5 {[%emt 0:03:21]} Ra1 {[%emt 0:03:36]} 57. Rf4 {[%emt 0:00:47]} Bf6 {[%emt 0:00:30]} 58. Rxe4+ {[%emt 0:00:30]} Kd7 {[%emt 0:00:00]} 59. b4 {[%emt 0:00:39]} Rb1 {[%emt 0:00:18]} 60. Kf5 {[%emt 0:00:49]} Rh1 {[%emt 0:00:53]} 61. Kg6 {[%emt 0:01:03]} Rg1 {[%emt 0:01:30]} 62. g4 {[%emt 0:00:47]} Bc3 {[%emt 0:00:29]} 63. Be2 {[%emt 0:01:28]} Kd6 {[%emt 0:02:13]} 64. b5 {[%emt 0:00:41]} Kd5 {[%emt 0:00:59]} 65. Re7 {[%emt 0:00:34]} Kd6 {[%emt 0:01:01]} 66. Rxg7 {[%emt 0:00:27]} Bxg7 {[%emt 0:00:48]} 67. Kxg7 {[%emt 0:00:30]} Rg2 68. Bd1 {[%emt 0:00:28]} Ra2 {[%emt 0:00:47]} 69. h6 {[%emt 0:00:32]} Ra7+ {[%emt 0:00:46]} 70. Kg6 {[%emt 0:00:05]} Re7 {[%emt 0:00:42]} 71. Bb3 {[%emt 0:00:28]} Re4 {[%emt 0:01:37]} 72. g5 {[%emt 0:00:01]} 1-0

[Event "Turkey IS Bank Super League 2017"]
[Site "Darica-Kocaeli"]
[Date "2017.07.30"]
[Round "5"]
[White "Kesgin, Halit Kaan"]
[Black "Ozenir, Ekin Baris"]
[Result "1-0"]
[ECO "B08"]
[WhiteElo "2207"]
[BlackElo "2098"]
[Annotator "NA"]
[PlyCount "109"]
[EventType "team-tourn"]
[EventCountry "TUR"]
[SourceTitle "playchess.com"]
[Source "ChessBase"]
[SourceQuality "1"]
[TimeControl "40/5400+30:1800+30"]

1. e4 {[%emt 0:00:30]} Nc6 {[%emt 0:01:00]} 2. Nf3 {[%emt 0:01:30]} d6 {[%emt 0:00:30]} 3. d4 {[%emt 0:00:30]} Nf6 {[%emt 0:00:30]} 4. Nc3 {[%emt 0:00:30]} g6 {[%emt 0:00:00]} 5. h3 {[%emt 0:02:30]} Bg7 {[%emt 0:01:00]} 6. Be3 {[%emt 0:00:30]} O-O {[%emt 0:00:30]} 7. Qd2 {[%emt 0:01:30]} e5 {[%emt 0:02:30]} 8. dxe5 {[%emt 0:06:30]} Nxe5 {[%emt 0:07:30] LiveBook: 8 Games} 9. O-O-O {[%emt 0:03:30]} Nxf3 $14 {[%emt 0:14:30]} 10. gxf3 {[%emt 0:00:30]} Re8 {[%emt 0:00:30]} 11. Bg5 {[%emt 0:05:30]} c6 {[%emt 0:26:30]} 12. Qxd6 {[%emt 0:11:30]} Qxd6 {[%emt 0:00:30]} 13. Rxd6 {[%emt 0:00:00]} Be6 {[%emt 0:00:30]} 14. h4 {[%emt 0:04:00]} Nh5 {[%emt 0:04:30]} 15. a3 {[%emt 0:21:30]} Be5 {[%emt 0:07:30]} 16. Rd1 {[%emt 0:00:30]} f5 {[%emt 0:10:38]} 17. Ne2 {[%emt 0:08:30]} f4 {[%emt 0:03:36]} 18. Bh3 {[%emt 0:13:31]} Bxh3 {[%emt 0:07:44]} 19. Rxh3 {[%emt 0:00:30]} Rac8 {[%emt 0:00:00]} 20. Rd7 {[%emt 0:01:43]} Rc7 {[%emt 0:00:00]} 21. Rxc7 {[%emt 0:00:13]} Bxc7 {[%emt 0:00:00]} 22. Rh1 {[%emt 0:00:30]} Re6 {[%emt 0:02:56]} 23. Rd1 {[%emt 0:04:53]} Rd6 {[%emt 0:00:28]} 24. Rxd6 {[%emt 0:00:00]} Bxd6 {[%emt 0:00:30]} 25. Kd2 {[%emt 0:00:21]} Kf7 {[%emt 0:00:30]} 26. Kd3 {[%emt 0:00:18]} Ke6 {[%emt 0:00:18]} 27. c4 {[%emt 0:03:12]} Ke5 {[%emt 0:05:33]} 28. b4 {[%emt 0:00:37]} Ke6 {[%emt 0:01:20]} 29. c5 {[%emt 0:01:55]} Be5 {[%emt 0:00:04]} 30. Kc4 {[%emt 0:00:38]} Kd7 {[%emt 0:00:11]} 31. Nc1 {[%emt 0:00:31]} Bc7 {[%emt 0:02:32]} 32. Nd3 {[%emt 0:00:18]} Ke6 {[%emt 0:00:00]} 33. Kc3 {[%emt 0:00:48]} Kd7 {[%emt 0:00:19]} 34. Kd2 {[%emt 0:00:00]} a5 {[%emt 0:00:45]} 35. Ke1 {[%emt 0:00:00]} axb4 {[%emt 0:00:19]} 36. axb4 {[%emt 0:00:00]} Ke6 {[%emt 0:00:19]} 37. Kf1 {[%emt 0:00:10]} Kf7 {[%emt 0:00:09]} 38. Kg2 {[%emt 0:04:19]} Kg7 {[%emt 0:01:08]} 39. Kh3 {[%emt 0:00:04]} Bb8 {[%emt 0:00:13]} 40. Kg4 {[%emt 0:00:00]} Nf6+ {[%emt 0:30:39]} 41. Kh3 {[%emt 0:01:29]} Nh5 {[%emt 0:00:00]} 42. Kg4 {[%emt 0:10:30]} Nf6+ {[%emt 0:00:00]} 43. Bxf6+ {[%emt 0:00:00]} Kxf6 {[%emt 0:00:00]} 44. h5 {[%emt 0:00:00]} Bc7 {[%emt 0:00:00]} 45. hxg6 {[%emt 0:01:30]} hxg6 {[%emt 0:00:00]} 46. Nxf4 {[%emt 0:00:30]} Bb8 {[%emt 0:00:00]} 47. Nd3 {[%emt 0:00:30]} g5 {[%emt 0:00:00]} 48. e5+ {[%emt 0:00:00]} Kg6 {[%emt 0:00:00]} 49. f4 {[%emt 0:00:00]} gxf4 {[%emt 0:00:00]} 50. Nxf4+ {[%emt 0:00:30]} Kf7 {[%emt 0:00:00]} 51. Kf5 {[%emt 0:00:00]} Ke7 {[%emt 0:00:00]} 52. Ng6+ {[%emt 0:00:00]} Kf7 {[%emt 0:00:00]} 53. e6+ {[%emt 0:00:30]} Ke8 {[%emt 0:00:00]} 54. f4 {[%emt 0:00:30]} Bc7 {[%emt 0:00:00]} 55. Ke4 {[%emt 0:00:30]} 1-0

[Event "Turkey IS Bank Super League 2017"]
[Site "Darica-Kocaeli"]
[Date "2017.07.30"]
[Round "5"]
[White "Tofan, Ibrahim"]
[Black "Kiremitciyan, Ari"]
[Result "0-1"]
[ECO "B20"]
[WhiteElo "2194"]
[BlackElo "2240"]
[Annotator "NA"]
[PlyCount "110"]
[EventType "team-tourn"]
[EventCountry "TUR"]
[SourceTitle "playchess.com"]
[Source "ChessBase"]
[SourceQuality "1"]
[TimeControl "40/5400+30:1800+30"]

1. e4 {[%emt 0:01:30]} c5 {[%emt 0:01:00]} 2. b3 {[%emt 0:00:30]} b6 {[%emt 0:00:30]} 3. g3 {[%emt 0:00:30]} Bb7 {[%emt 0:00:30]} 4. Bg2 {[%emt 0:00:30]} Nf6 {[%emt 0:00:00]} 5. d3 {[%emt 0:04:30]} e6 {[%emt 0:04:00]} 6. c4 {[%emt 0:01:30]} Be7 {[%emt 0:05:30]} 7. Nc3 {[%emt 0:00:30]} d6 {[%emt 0:03:30]} 8. Nge2 {[%emt 0:00:30]} Nc6 {[%emt 0:06:30]} 9. d4 {[%emt 0:05:30]} cxd4 {[%emt 0:01:30]} 10. Nxd4 {[%emt 0:00:30]} Ne5 {[%emt 0:08:30]} 11. O-O {[%emt 0:01:30]} Qb8 {[%emt 0:03:30]} 12. f4 {[%emt 0:02:30]} Ned7 {[%emt 0:00:30]} 13. f5 {[%emt 0:00:30]} (13. Ba3 $16) 13... e5 {[%emt 0:03:30]} 14. Nc2 {[%emt 0:00:30]} h6 {[%emt 0:03:30]} 15. Ne3 $14 {[%emt 0:02:30]} O-O {[%emt 0:08:30]} 16. g4 {[%emt 0:01:30]} Nc5 {[%emt 0:03:30]} 17. Qc2 {[%emt 0:02:30]} a6 {[%emt 0:14:30]} 18. h4 {[%emt 0:03:30]} Nh7 {[%emt 0:01:30]} 19. Qf2 {[%emt 0:22:30]} Qd8 {[%emt 0:01:30]} 20. g5 {[%emt 0:04:30]} hxg5 {[%emt 0:00:30]} 21. Ned5 {[%emt 0:05:30]} Nd3 {[%emt 0:08:33]} 22. Qxb6 {[%emt 0:01:30]} Bxd5 {[%emt 0:00:57]} 23. Nxd5 {[%emt 0:03:30]} Nxc1 {[%emt 0:01:36]} 24. Qxd8 {[%emt 0:02:30]} Bxd8 {[%emt 0:03:13]} 25. Raxc1 {[%emt 0:00:30]} gxh4 {[%emt 0:00:00]} 26. Rfd1 {[%emt 0:00:30]} a5 {[%emt 0:02:28]} 27. Rc3 {[%emt 0:00:30]} Rb8 {[%emt 0:04:03]} 28. Rcd3 {[%emt 0:00:30]} Nf6 {[%emt 0:06:13]} 29. Nc3 {[%emt 0:03:30]} Bb6+ {[%emt 0:00:24]} 30. Kf1 {[%emt 0:01:30]} Bc5 {[%emt 0:01:35]} 31. Bf3 {[%emt 0:01:30]} g5 {[%emt 0:00:23]} 32. fxg6 {[%emt 0:02:30]} fxg6 {[%emt 0:00:11]} 33. Kg2 {[%emt 0:07:39]} g5 {[%emt 0:01:51]} 34. Kh3 {[%emt 0:00:04]} Kh7 {[%emt 0:00:33]} 35. R1d2 {[%emt 0:14:04]} Kh6 {[%emt 0:00:22]} 36. Re2 {[%emt 0:00:11]} Nh5 {[%emt 0:00:44]} 37. Nd5 {[%emt 0:01:48]} Nf4+ {[%emt 0:00:29]} 38. Nxf4 {[%emt 0:00:57]} Rxf4 {[%emt 0:00:03]} 39. Bg4 {[%emt 0:02:12]} Rbf8 {[%emt 0:00:12]} 40. Bf5 {[%emt 0:00:00]} Kh5 {[%emt 0:30:52]} 41. Rg2 {[%emt 0:00:35]} R8xf5 {[%emt 0:00:00]} 42. exf5 {[%emt 0:02:30]} g4+ {[%emt 0:00:00]} 43. Kh2 {[%emt 0:00:30]} h3 {[%emt 0:00:00]} 44. Rgg3 {[%emt 0:04:30]} Kh4 {[%emt 0:00:00]} 45. a3 {[%emt 0:02:30]} Bf2 {[%emt 0:00:00]} 46. Rxh3+ {[%emt 0:00:30]} gxh3 {[%emt 0:00:00]} 47. Rxh3+ {[%emt 0:00:30]} Kg5 {[%emt 0:00:00]} 48. Kg2 {[%emt 0:01:30]} Bc5 {[%emt 0:00:00]} 49. a4 {[%emt 0:00:30]} e4 {[%emt 0:00:00]} 50. Rh8 {[%emt 0:00:30]} Kxf5 {[%emt 0:00:00]} 51. Ra8 {[%emt 0:00:00]} e3 {[%emt 0:00:00]} 52. Re8 {[%emt 0:01:00]} Re4 {[%emt 0:00:00]} 53. Rf8+ {[%emt 0:00:00]} Ke5 {[%emt 0:00:00]} 54. Kf3 {[%emt 0:00:00]} Kd4 {[%emt 0:00:00]} 55. Ke2 {[%emt 0:00:30]} Rh4 {[%emt 0:00:00]} 0-1

[Event "Turkey IS Bank Super League 2017"]
[Site "Darica-Kocaeli"]
[Date "2017.07.30"]
[Round "5"]
[White "Topak, Engin"]
[Black "Karatekin, Tamer"]
[Result "1-0"]
[ECO "B11"]
[WhiteElo "2192"]
[BlackElo "2287"]
[Annotator "NA"]
[PlyCount "79"]
[EventType "team-tourn"]
[EventCountry "TUR"]
[SourceTitle "playchess.com"]
[Source "ChessBase"]
[SourceQuality "1"]
[TimeControl "40/5400+30:1800+30"]

1. e4 {[%emt 0:00:30]} c6 {[%emt 0:03:00]} 2. Nf3 {[%emt 0:05:30]} d5 {[%emt 0:00:30]} 3. Nc3 {[%emt 0:00:30]} Bg4 {[%emt 0:01:30]} 4. h3 {[%emt 0:00:30]} Bh5 {[%emt 0:00:00]} 5. d4 {[%emt 0:21:30]} dxe4 {[%emt 0:03:00]} 6. Nxe4 {[%emt 0:01:30]} e6 {[%emt 0:00:30]} 7. c3 {[%emt 0:00:30]} Nd7 {[%emt 0:00:30]} 8. Bf4 {[%emt 0:03:30]} Ndf6 {[%emt 0:08:30]} 9. Ng3 {[%emt 0:03:30]} Bg6 {[%emt 0:00:30]} 10. Ne5 {[%emt 0:01:30]} Ne7 {[%emt 0:01:30]} 11. Qb3 $14 {[%emt 0:04:30]} Nfd5 {[%emt 0:09:30]} 12. Bd2 {[%emt 0:05:30]} Qb6 {[%emt 0:16:30]} 13. O-O-O {[%emt 0:07:30]} Nf5 {[%emt 0:04:30]} 14. Nxf5 {[%emt 0:07:30]} Bxf5 {[%emt 0:01:30]} 15. g4 {[%emt 0:11:30]} Bg6 {[%emt 0:01:30]} 16. h4 {[%emt 0:00:30]} f6 {[%emt 0:08:30]} 17. h5 {[%emt 0:05:27]} Be4 {[%emt 0:14:30]} 18. f3 {[%emt 0:01:09]} fxe5 {[%emt 0:00:30]} 19. fxe4 {[%emt 0:00:30]} Qxb3 {[%emt 0:00:30]} 20. axb3 {[%emt 0:00:30]} Nf6 {[%emt 0:00:00]} 21. Bc4 {[%emt 0:02:21]} exd4 {[%emt 0:08:14]} 22. Bxe6 {[%emt 0:01:27]} Bc5 {[%emt 0:00:18]} 23. Rhe1 {[%emt 0:05:24]} Rd8 {[%emt 0:11:26]} 24. e5 {[%emt 0:01:18]} Nd5 {[%emt 0:00:01]} 25. cxd4 {[%emt 0:01:13]} Bxd4 {[%emt 0:01:03]} 26. Bg5 {[%emt 0:03:08]} Ne7 {[%emt 0:00:01]} 27. Rf1 {[%emt 0:02:29]} Rf8 {[%emt 0:04:28]} 28. Rxf8+ {[%emt 0:00:30]} Kxf8 {[%emt 0:00:00]} 29. Rf1+ {[%emt 0:00:25]} Ke8 {[%emt 0:00:02]} 30. Rf7 {[%emt 0:00:30]} Rd7 {[%emt 0:00:00]} 31. Rxg7 {[%emt 0:00:00]} Rc7 {[%emt 0:00:00]} 32. Bf6 {[%emt 0:01:04]} Be3+ {[%emt 0:01:14]} 33. Kb1 {[%emt 0:00:25]} Bh6 {[%emt 0:00:36]} 34. Rxh7 {[%emt 0:00:40]} Bf8 {[%emt 0:00:30]} 35. g5 {[%emt 0:00:00]} Nd5 {[%emt 0:00:11]} 36. Rxc7 {[%emt 0:00:16]} Nxc7 {[%emt 0:00:00]} 37. Bg8 {[%emt 0:00:00]} Nd5 {[%emt 0:00:35]} 38. Bxd5 {[%emt 0:00:18]} cxd5 {[%emt 0:00:30]} 39. h6 {[%emt 0:00:30]} Kf7 {[%emt 0:00:00]} 40. h7 {[%emt 0:00:00]} 1-0

[Event "Turkey IS Bank Super League 2017"]
[Site "Darica-Kocaeli"]
[Date "2017.07.30"]
[Round "5"]
[White "Yelken, Mustafa"]
[Black "Oksuz, Akin"]
[Result "1-0"]
[ECO "B08"]
[WhiteElo "2171"]
[BlackElo "2165"]
[Annotator "NA"]
[PlyCount "115"]
[EventType "team-tourn"]
[EventCountry "TUR"]
[SourceTitle "playchess.com"]
[Source "ChessBase"]
[SourceQuality "1"]
[TimeControl "40/5400+30:1800+30"]

1. d4 {[%emt 0:00:30]} d6 {[%emt 0:01:00]} 2. Nf3 {[%emt 0:02:30]} g6 {[%emt 0:00:30]} 3. e4 {[%emt 0:05:30]} Nf6 {[%emt 0:00:00]} 4. Nc3 {[%emt 0:00:30]} Bg7 {[%emt 0:01:00]} 5. Be2 {[%emt 0:02:30]} a6 {[%emt 0:00:30]} 6. a4 {[%emt 0:02:30]} b6 {[%emt 0:01:30]} 7. O-O $14 {[%emt 0:05:30]} Bb7 {[%emt 0:29:30]} 8. e5 {[%emt 0:10:30]} Nfd7 {[%emt 0:02:30]} 9. e6 {[%emt 0:13:30]} fxe6 {[%emt 0:00:30]} 10. Ng5 {[%emt 0:00:30]} Nf8 {[%emt 0:01:30]} 11. Bg4 {[%emt 0:00:30]} Qd7 {[%emt 0:09:30]} 12. Nxe6 {[%emt 0:05:30]} Nxe6 {[%emt 0:02:30]} 13. d5 {[%emt 0:01:30]} c6 {[%emt 0:02:30]} 14. Bxe6 {[%emt 0:04:30]} Qc7 {[%emt 0:00:00]} 15. Qf3 {[%emt 0:03:30]} Rf8 {[%emt 0:12:00]} 16. Qh3 {[%emt 0:00:30]} h6 {[%emt 0:08:30]} 17. Qg4 {[%emt 0:03:30]} g5 {[%emt 0:00:30]} 18. Qh5+ {[%emt 0:01:30]} Kd8 {[%emt 0:00:30]} 19. Qg6 {[%emt 0:00:00]} Bxc3 {[%emt 0:05:46]} 20. bxc3 {[%emt 0:00:00]} cxd5 {[%emt 0:00:14]} 21. Qxh6 {[%emt 0:00:30]} Nd7 {[%emt 0:00:30]} 22. Bxg5 {[%emt 0:01:30]} Qxc3 {[%emt 0:00:30]} 23. Qh7 {[%emt 0:01:30]} Re8 {[%emt 0:00:34]} 24. Rae1 {[%emt 0:06:30]} Nf6 {[%emt 0:05:11]} 25. Qg7 {[%emt 0:03:30]} Ne4 {[%emt 0:01:30]} 26. Qxc3 {[%emt 0:04:30]} Nxc3 {[%emt 0:00:02]} 27. Bf7 {[%emt 0:00:30]} Kd7 {[%emt 0:01:39]} 28. Bxe8+ {[%emt 0:00:30]} Rxe8 {[%emt 0:00:02]} 29. a5 {[%emt 0:09:30]} bxa5 {[%emt 0:00:04]} 30. Ra1 {[%emt 0:00:03]} a4 {[%emt 0:01:15]} 31. Rfe1 {[%emt 0:00:44]} Bc6 {[%emt 0:00:37]} 32. f3 {[%emt 0:01:23]} d4 {[%emt 0:00:43]} 33. Bd2 {[%emt 0:01:12]} Nd5 {[%emt 0:00:02]} 34. Kf2 {[%emt 0:00:59]} e5 {[%emt 0:00:02]} 35. h4 {[%emt 0:00:23]} Bb5 {[%emt 0:01:59]} 36. h5 {[%emt 0:00:36]} Ke6 {[%emt 0:00:17]} 37. h6 {[%emt 0:00:26]} Kf6 {[%emt 0:02:25]} 38. Rh1 {[%emt 0:00:41]} Rh8 {[%emt 0:01:04]} 39. h7 {[%emt 0:00:26]} Kg7 {[%emt 0:02:39]} 40. Rh6 {[%emt 0:00:00]} Nf6 {[%emt 0:03:55]} 41. Rah1 {[%emt 0:19:07]} e4 {[%emt 0:06:30]} 42. Bg5 {[%emt 0:04:48]} e3+ {[%emt 0:00:30]} 43. Kg3 {[%emt 0:00:05]} Nxh7 {[%emt 0:11:41]} 44. Be7 {[%emt 0:00:37]} d3 {[%emt 0:02:25]} 45. cxd3 {[%emt 0:03:34]} Bxd3 {[%emt 0:00:13]} 46. Rxd6 {[%emt 0:01:02]} Bc4 {[%emt 0:03:11]} 47. Rdh6 {[%emt 0:01:31]} Bd3 {[%emt 0:02:56]} 48. Bc5 {[%emt 0:00:23]} Re8 {[%emt 0:00:55]} 49. Bd4+ {[%emt 0:00:20]} Kg8 {[%emt 0:00:49]} 50. Rd6 {[%emt 0:01:07]} e2 {[%emt 0:04:13]} 51. Kf2 {[%emt 0:00:14]} a3 {[%emt 0:00:32]} 52. Bc3 {[%emt 0:00:19]} Bc4 {[%emt 0:02:45]} 53. Rg6+ {[%emt 0:06:14]} Kf8 {[%emt 0:00:05]} 54. Rc6 {[%emt 0:00:12]} Bb5 {[%emt 0:01:11]} 55. Rc7 {[%emt 0:00:19]} a2 {[%emt 0:03:18]} 56. Rcxh7 {[%emt 0:00:33]} Bc4 {[%emt 0:01:12]} 57. Rh8+ {[%emt 0:00:09]} Bg8 {[%emt 0:00:13]} 58. Rxg8+ {[%emt 0:00:06]} 1-0

[Event "Turkey IS Bank Super League 2017"]
[Site "Darica-Kocaeli"]
[Date "2017.07.30"]
[Round "5"]
[White "Ererdem, Gani Eren"]
[Black "Tirak, Mert"]
[Result "1-0"]
[ECO "B90"]
[WhiteElo "2090"]
[BlackElo "1909"]
[Annotator "NA"]
[PlyCount "47"]
[EventType "team-tourn"]
[EventCountry "TUR"]
[SourceTitle "playchess.com"]
[Source "ChessBase"]
[SourceQuality "1"]
[TimeControl "40/5400+30:1800+30"]

1. e4 {[%emt 0:00:30]} c5 {[%emt 0:02:00]} 2. Nf3 {[%emt 0:00:30]} d6 {[%emt 0:00:00]} 3. d4 {[%emt 0:00:30]} cxd4 {[%emt 0:00:00]} 4. Nxd4 {[%emt 0:00:30]} Nf6 {[%emt 0:00:00]} 5. Nc3 $11 {[%emt 0:00:00]} a6 {[%emt 0:04:00]} 6. Bd3 {[%emt 0:00:00]} e5 {[%emt 0:00:30]} 7. Nde2 {[%emt 0:00:00]} Be6 {[%emt 0:04:30]} 8. O-O {[%emt 0:00:00]} Be7 {[%emt 0:03:30]} 9. Ng3 {[%emt 0:15:30]} g6 {[%emt 0:12:30]} 10. f4 {[%emt 0:08:30]} exf4 {[%emt 0:01:30]} 11. Bxf4 {[%emt 0:00:30]} Nbd7 {[%emt 0:07:30]} 12. Qd2 {[%emt 0:13:30]} Ne5 {[%emt 0:11:30]} 13. Rae1 {[%emt 0:05:30]} h5 {[%emt 0:20:30]} 14. Nd5 {[%emt 0:35:26]} h4 {[%emt 0:06:30]} 15. Nf5 {[%emt 0:04:01]} gxf5 {[%emt 0:02:30]} 16. Nxe7 {[%emt 0:00:03]} Nxe4 {[%emt 0:11:23]} 17. Bxe4 {[%emt 0:01:13]} fxe4 {[%emt 0:03:22]} 18. Nd5 {[%emt 0:03:34]} Bxd5 {[%emt 0:06:18]} 19. Qxd5 {[%emt 0:00:10]} Qe7 {[%emt 0:00:45]} 20. Bxe5 {[%emt 0:06:08]} dxe5 {[%emt 0:00:04]} 21. Rxf7 {[%emt 0:00:11]} Qxf7 {[%emt 0:01:05]} 22. Qxe5+ {[%emt 0:00:02]} Kd7 {[%emt 0:00:26]} 23. Rd1+ {[%emt 0:00:30]} Kc6 {[%emt 0:00:30]} 24. Rd6+ {[%emt 0:00:01]} 1-0

[Event "Turkey IS Bank Super League 2017"]
[Site "Darica-Kocaeli"]
[Date "2017.07.30"]
[Round "5"]
[White "Karagollu, Ahmet"]
[Black "Kinsiz, Onur"]
[Result "1/2-1/2"]
[ECO "B26"]
[WhiteElo "2083"]
[BlackElo "2221"]
[Annotator "NA"]
[PlyCount "61"]
[EventType "team-tourn"]
[EventCountry "TUR"]
[SourceTitle "playchess.com"]
[Source "ChessBase"]
[SourceQuality "1"]
[TimeControl "40/5400+30:1800+30"]

1. e4 {[%emt 0:01:30]} d6 {[%emt 0:01:00]} 2. Nc3 {[%emt 0:00:30]} Nf6 {[%emt 0:01:30]} 3. g3 {[%emt 0:00:30]} c5 {[%emt 0:06:30]} 4. Bg2 {[%emt 0:02:30]} Nc6 {[%emt 0:00:30]} 5. d3 {[%emt 0:01:30]} g6 {[%emt 0:06:30]} 6. h3 {[%emt 0:04:30]} Bg7 {[%emt 0:01:30]} 7. Be3 {[%emt 0:00:30]} O-O {[%emt 0:03:30]} 8. Qd2 {[%emt 0:01:30] LiveBook: 61 Games} Rb8 {[%emt 0:17:30]} 9. Nge2 {[%emt 0:06:30]} b5 $11 {[%emt 0:02:30]} 10. Bh6 {[%emt 0:09:30]} b4 {[%emt 0:04:30]} 11. Nd5 {[%emt 0:05:30]} e6 {[%emt 0:05:30]} 12. Bxg7 {[%emt 0:01:30]} Kxg7 {[%emt 0:00:30]} 13. Ne3 {[%emt 0:00:00]} Nd4 {[%emt 0:12:30]} 14. O-O {[%emt 0:10:00]} Ng8 {[%emt 0:05:30]} 15. f4 {[%emt 0:07:30]} f5 {[%emt 0:04:30]} 16. Nxd4 {[%emt 0:04:30]} cxd4 {[%emt 0:01:30]} 17. Nc4 {[%emt 0:00:00]} Ba6 {[%emt 0:11:31]} 18. Qf2 {[%emt 0:03:00]} Bxc4 {[%emt 0:05:43]} 19. Qxd4+ {[%emt 0:01:30]} Qf6 {[%emt 0:00:48]} 20. Qxc4 {[%emt 0:02:30]} Rfc8 {[%emt 0:00:54]} 21. Qb3 {[%emt 0:02:30]} Ne7 {[%emt 0:00:09]} 22. Rae1 {[%emt 0:05:30]} Rc5 {[%emt 0:04:04]} 23. exf5 {[%emt 0:03:30]} Nxf5 {[%emt 0:00:13]} 24. Rxe6 {[%emt 0:02:30]} Qf7 {[%emt 0:00:24]} 25. Ree1 {[%emt 0:06:36]} Nxg3 {[%emt 0:02:23]} 26. d4 {[%emt 0:04:22]} Qxb3 {[%emt 0:00:55]} 27. cxb3 {[%emt 0:00:05]} Rc7 {[%emt 0:00:23]} 28. Rf2 {[%emt 0:00:50]} Rbc8 {[%emt 0:00:53]} 29. Bd5 {[%emt 0:03:56]} Nf5 {[%emt 0:00:27]} 30. Rd2 {[%emt 0:01:44]} Rc1 {[%emt 0:00:28]} 31. Kf2 {[%emt 0:02:20]} 1/2-1/2

[Event "Turkey IS Bank Super League 2017"]
[Site "Darica-Kocaeli"]
[Date "2017.07.30"]
[Round "5"]
[White "Gundogan, Cem"]
[Black "Uzumcu, Ahmet Utku"]
[Result "0-1"]
[ECO "E73"]
[WhiteElo "2062"]
[BlackElo "2223"]
[Annotator "NA"]
[PlyCount "50"]
[EventType "team-tourn"]
[EventCountry "TUR"]
[SourceTitle "playchess.com"]
[Source "ChessBase"]
[SourceQuality "1"]
[TimeControl "40/5400+30:1800+30"]

1. c4 {[%emt 0:00:30]} Nf6 {[%emt 0:04:00]} 2. Nc3 {[%emt 0:00:30]} g6 {[%emt 0:00:30]} 3. e4 {[%emt 0:09:30]} d6 {[%emt 0:00:30]} 4. d4 {[%emt 0:00:30]} Bg7 {[%emt 0:00:30]} 5. Be2 {[%emt 0:00:30]} O-O {[%emt 0:00:30]} 6. g4 {[%emt 0:01:30]} c5 {[%emt 0:15:30]} 7. d5 {[%emt 0:10:30]} e6 {[%emt 0:02:30]} 8. g5 {[%emt 0:01:30] LiveBook: 28 Games} Ne8 {[%emt 0:00:30]} 9. h4 {[%emt 0:01:30]} exd5 {[%emt 0:03:30]} 10. cxd5 {[%emt 0:04:30]} Qe7 $11 {[%emt 0:05:30]} 11. Qd3 {[%emt 0:46:56]} Nc7 {[%emt 0:07:30]} 12. f4 {[%emt 0:02:37]} b5 {[%emt 0:14:30]} 13. f5 {[%emt 0:03:01]} gxf5 {[%emt 0:07:30]} 14. exf5 {[%emt 0:00:06]} Bxc3+ {[%emt 0:00:30]} 15. bxc3 {[%emt 0:04:55]} Qe5 {[%emt 0:00:30]} 16. Nf3 {[%emt 0:03:55]} Qxf5 {[%emt 0:02:30]} 17. Qxf5 {[%emt 0:01:21]} Bxf5 {[%emt 0:01:30]} 18. Bf4 {[%emt 0:03:09]} Nxd5 {[%emt 0:01:30]} 19. Bxd6 {[%emt 0:00:14]} Re8 {[%emt 0:00:30]} 20. Kd2 {[%emt 0:00:37]} Nxc3 {[%emt 0:02:30]} 21. Kxc3 {[%emt 0:01:03]} Rxe2 {[%emt 0:00:30]} 22. Rhe1 {[%emt 0:01:13]} Rc2+ {[%emt 0:01:30]} 23. Kb3 {[%emt 0:00:30]} Nc6 {[%emt 0:00:00]} 24. Bc7 {[%emt 0:00:52]} c4+ {[%emt 0:02:00]} 25. Ka3 {[%emt 0:00:30]} Rc3+ {[%emt 0:00:00]} 0-1